bitfinex-derivatives/quotes_SOLF0:USTF0_20251201
["timestamp","ask_amount","ask_price","bid_price","bid_amount"]
[1764598275908,1.38,126.55,126.48,10.60580215]
[1764598276107,1.38,126.54,126.48,3.23]
[1764598276310,1.38,126.52,126.45,10.60580215]
[1764598276513,1.38,126.52,126.45,3.23]
[1764598276911,0.05500738,126.5,126.47,3.28615383]
[1764598277312,1.43500738,126.5,126.47,0.05615383]
[1764598277518,1.38,126.49,126.47,0.05615383]
[1764598278216,8.4974,126.49,126.47,0.05615383]
[1764598278714,1.38,126.49,126.47,0.05615383]
[1764598279309,8.4972,126.49,126.47,0.05615383]
[1764598280914,7.1172,126.49,126.47,0.05615383]
[1764598282415,8.4972,126.49,126.47,0.05615383]
[1764598285720,7.1172,126.49,126.47,3.30615383]
[1764598286521,0.05500738,126.5,126.47,3.30615383]
[1764598290429,1.43500738,126.5,126.47,3.30615383]
[1764598290622,1.43500738,126.5,126.47,0.05615383]
[1764598290623,1.38,126.49,126.47,0.05615383]
[1764598291923,1.38,126.48,126.47,0.05615383]
[1764598296123,1.38,126.49,126.47,0.05615383]
[1764598297330,8.4972,126.49,126.47,0.05615383]
[1764598298124,1.38,126.49,126.47,0.05615383]
[1764598298330,7.1176,126.48,126.47,0.05615383]
[1764598299629,7.1171,126.49,126.47,0.05615383]
[1764598300529,7.1176,126.48,126.47,0.05615383]
[1764598300835,8.4976,126.48,126.47,0.05615383]
[1764598304237,7.1176,126.48,126.47,3.45615383]
[1764598304434,7.1176,126.48,126.47,0.05615383]
[1764598309650,8.4976,126.48,126.47,0.05615383]
[1764598311050,7.1176,126.48,126.47,0.05615383]
[1764598312744,8.4976,126.48,126.47,0.05615383]
[1764598313648,0.05500738,126.5,126.47,3.31615383]
[1764598314745,1.43500738,126.5,126.47,3.31615383]
[1764598315339,0.05500738,126.5,126.47,3.31615383]
[1764598316444,1.43500738,126.5,126.47,3.31615383]
[1764598317340,0.05500738,126.5,126.47,10.69195598]
[1764598317648,0.05500738,126.5,126.48,3.26]
[1764598319247,0.05500738,126.5,126.48,10.63580215]
[1764598321037,7.1148,126.53,126.49,3.26]
[1764598321238,1.38,126.56,126.51,3.26]
[1764598321443,1.44,126.59,126.52,3.26]
[1764598321641,8.5522,126.58,126.53,3.26]
[1764598321942,8.5522,126.58,126.54,10.63580215]
[1764598322143,0.0574788,126.57,126.55,0.04991098]
[1764598322851,1.4974788,126.57,126.55,0.04991098]
[1764598323247,0.0574788,126.57,126.55,3.30991098]
[1764598324848,1.39,126.56,126.5,7.37580215]
[1764598325049,1.39,126.56,126.52,3.26]
[1764598325947,1.4422953,126.55,126.53,0.06034882]
[1764598328152,8.5560953,126.55,126.53,0.06034882]
[1764598328454,1.39,126.54,126.53,0.06034882]
[1764598329249,1.33,126.52,126.49,7.37580215]
[1764598329455,1.33,126.52,126.48,10.63580215]
[1764598330355,0.05634656,126.51,126.49,7.42829186]
[1764598330551,0.05634656,126.51,126.5,3.26]
[1764598330757,1.33,126.55,126.51,3.26]
[1764598331459,8.443,126.57,126.52,3.26]
[1764598331652,1.3864077,126.56,126.53,0.05850928]
[1764598332455,1.3864077,126.56,126.53,3.31850928]
[1764598332654,0.0564077,126.56,126.53,3.31850928]
[1764598332951,1.38,126.66,126.56,3.26]
[1764598333154,1.38,126.66,126.55,133.73679168]
[1764598333155,1.38,126.66,126.6,3.26]
[1764598333957,0.05145168,126.64,126.62,0.05648149]
[1764598334156,0.05145168,126.64,126.62,3.31648149]
[1764598334463,0.05145168,126.64,126.62,0.05648149]
[1764598335260,0.05145168,126.64,126.62,3.31648149]
[1764598335755,0.05145168,126.64,126.62,0.05648149]
[1764598336155,1.43145168,126.64,126.62,0.05648149]
[1764598336961,8.54025168,126.64,126.62,0.05648149]
[1764598337650,7.1102,126.62,126.56,10.61530307]
[1764598337851,1.38,126.61,126.56,3.26]
[1764598338865,1.43215302,126.6,126.57,0.06059487]
[1764598339659,0.05215302,126.6,126.57,3.32059487]
[1764598344469,1.44215302,126.6,126.57,0.06059487]
[1764598345571,1.39,126.59,126.57,0.06059487]
[1764598347358,8.5016,126.59,126.57,0.06059487]
[1764598347767,1.39,126.58,126.57,0.06059487]
[1764598352871,1.33,126.55,126.51,3.09]
[1764598353270,1.33,126.6,126.51,3.09]
[1764598353574,1.33,126.6,126.52,3.09]
[1764598353779,0.05892339,126.57,126.55,3.1438796]
[1764598356271,7.1102,126.62,126.56,3.09]
[1764598357078,7.1102,126.62,126.57,3.09]
[1764598357281,0.05185776,126.61,126.59,3.09]
[1764598357470,7.16225776,126.61,126.59,3.09]
[1764598357983,8.49225776,126.61,126.58,0.05295799]
[1764598358184,8.49225776,126.61,126.58,3.14295799]
[1764598358684,0.05185776,126.61,126.58,3.14295799]
[1764598363384,1.38185776,126.61,126.58,3.14295799]
[1764598363578,0.05185776,126.61,126.58,3.14295799]
[1764598365784,0.05185776,126.61,126.59,3.09]
[1764598368887,7.1085,126.65,126.6,3.09]
[1764598369684,8.4885,126.65,126.6,3.09]
[1764598369884,0.05934161,126.64,126.61,3.16627256]
[1764598370479,1.37,126.63,126.61,0.05627256]
[1764598370781,1.42934161,126.64,126.61,0.05627256]
[1764598371178,1.43,126.74,126.63,110.5842]
[1764598371380,1.43,126.74,126.66,3.11]
[1764598371583,1.43,126.74,126.64,7.35530307]
[1764598371780,1.43,126.74,126.63,7.35530307]
[1764598371781,1.43,126.68,126.63,7.35530307]
[1764598371979,8.33138738,126.69,126.6,14.7516043]
[1764598371980,1.43,126.65,126.6,7.35530307]
[1764598372179,1.43,126.63,126.61,0.05549427]
[1764598372587,9.76138738,126.63,126.61,0.05549427]
[1764598372889,9.76138738,126.63,126.57,7.35530307]
[1764598372890,1.38,126.6,126.54,10.46530307]
[1764598373393,1.38,126.6,126.54,10.45864762]
[1764598373589,8.4895,126.63,126.56,3.11]
[1764598373888,0.05894198,126.61,126.58,0.05567197]
[1764598374088,0.05894198,126.61,126.58,3.16567197]
[1764598374288,0.05894198,126.61,126.59,3.11]
[1764598376185,0.05894198,126.61,126.59,10.45864762]
[1764598376788,0.05894198,126.61,126.6,3.11]
[1764598377187,0.05894198,126.61,126.59,10.45864762]
[1764598378900,1.43894198,126.61,126.58,10.51431959]
[1764598379090,0.05894198,126.61,126.58,10.51431959]
[1764598380094,0.05894198,126.61,126.59,3.11]
[1764598380596,0.05894198,126.61,126.59,10.45864762]
[1764598380798,1.43894198,126.61,126.58,0.05567197]
[1764598381002,1.38,126.6,126.58,0.05567197]
[1764598382699,8.4909,126.6,126.58,0.05567197]
[1764598382898,1.38,126.59,126.58,0.05567197]
[1764598383400,1.38,126.58,126.54,7.34864762]
[1764598383605,1.38,126.58,126.54,10.45864762]
[1764598383795,1.38,126.58,126.55,7.34864762]
[1764598384106,1.38,126.58,126.54,10.45864762]
[1764598384307,0.04995077,126.57,126.55,0.06001963]
[1764598384607,0.04995077,126.57,126.55,7.40866725]
[1764598386504,0.04995077,126.57,126.55,10.51866725]
[1764598386702,0.04995077,126.57,126.56,3.11]
[1764598388301,112.0076,126.65,126.57,3.11]
[1764598388502,1.43,126.63,126.57,3.11]
[1764598388700,1.43,126.62,126.57,7.34864762]
[1764598388899,1.43,126.59,126.55,7.34864762]
[1764598389293,0.05209227,126.58,126.56,0.05974886]
[1764598389501,0.05209227,126.58,126.56,3.16974886]
[1764598390300,0.05209227,126.58,126.56,0.05974886]
[1764598394203,8.59419227,126.58,126.56,0.05974886]
[1764598394411,1.43,126.57,126.56,0.05974886]
[1764598394809,1.37,126.54,126.52,7.34864762]
[1764598395009,1.37,126.54,126.5,12.91707076]
[1764598395010,1.37,126.54,126.51,7.34864762]
[1764598395802,1.42479607,126.54,126.51,0.05596086]
[1764598396502,8.53909607,126.54,126.51,0.05596086]
[1764598397101,1.42479607,126.54,126.51,0.05596086]
[1764598400208,1.37,126.52,126.51,0.05596086]
[1764598404209,8.4854,126.52,126.51,0.05596086]
[1764598404910,110.72289607,126.54,126.45,3.1]
[1764598404911,1.32,126.49,126.45,3.1]
[1764598405112,7.1167,126.5,126.45,3.1]
[1764598405418,8.4367,126.5,126.45,3.1]
[1764598406120,0.0548383,126.49,126.46,3.16023658]
[1764598408108,1.3748383,126.49,126.46,0.06023658]
[1764598408615,1.32,126.48,126.46,0.06023658]
[1764598409423,7.1182,126.47,126.46,0.06023658]
[1764598410221,8.4382,126.47,126.46,0.06023658]
[1764598412623,1.32,126.47,126.46,0.06023658]
[1764598414015,1.3748383,126.49,126.46,3.27023658]
[1764598414214,1.3748383,126.49,126.46,0.06023658]
[1764598414419,1.32,126.47,126.46,0.06023658]
[1764598416122,8.4375,126.47,126.46,0.06023658]
[1764598416323,1.32,126.47,126.46,0.06023658]
[1764598416828,8.4375,126.47,126.46,0.06023658]
[1764598419728,7.1175,126.47,126.46,0.06023658]
[1764598420826,8.4375,126.47,126.46,0.06023658]
[1764598423525,7.1175,126.47,126.46,0.06023658]
[1764598425932,8.4375,126.47,126.46,0.06023658]
[1764598429631,8.3804,126.42,126.39,3.21]
[1764598430529,8.43231736,126.42,126.39,3.2613725]
[1764598431340,1.26,126.41,126.39,0.0513725]
[1764598431929,0.05191736,126.42,126.39,0.0513725]
[1764598431930,8.3814,126.4,126.39,0.0513725]
[1764598436643,8.3814,126.4,126.39,0.0013725]
[1764598436839,8.3814,126.4,126.31,3.25]
[1764598436840,1.21,126.36,126.31,3.25]
[1764598437039,1.21,126.35,126.29,3.25]
[1764598437237,8.3355,126.33,126.29,3.25]
[1764598437742,0.05038615,126.32,126.3,0.05897475]
[1764598438539,0.05038615,126.32,126.3,3.30897475]
[1764598439736,7.17648615,126.32,126.3,3.30897475]
[1764598439937,8.38648615,126.32,126.3,0.05897475]
[1764598440543,7.17648615,126.32,126.3,0.05897475]
[1764598441334,7.17648615,126.32,126.3,3.30897475]
[1764598441335,0.05038615,126.32,126.3,3.30897475]
[1764598443146,0.00038615,126.32,126.3,3.30897475]
[1764598445247,0.00038615,126.32,126.3,0.05897475]
[1764598445248,1.26038615,126.32,126.3,0.05897475]
[1764598446635,0.00038615,126.32,126.3,3.30897475]
[1764598448646,0.00038615,126.32,126.3,0.05897475]
[1764598449545,1.26038615,126.32,126.3,0.05897475]
[1764598450148,0.00038615,126.32,126.3,3.30897475]
[1764598460359,0.00038615,126.32,126.31,3.21]
[1764598460952,0.00038615,126.32,126.3,6.27622379]
[1764598461356,0.00038615,126.32,126.31,3.21]
[1764598465862,0.00038615,126.32,126.3,3.26897475]
[1764598467765,1.27038615,126.32,126.3,0.05897475]
[1764598468259,4.27724904,126.31,126.3,0.05897475]
[1764598469252,5.85724904,126.31,126.3,0.05897475]
[1764598469574,1.21,126.3,126.23,6.21724904]
[1764598469759,1.21,126.28,126.23,3.21]
[1764598470458,1.26236415,126.27,126.24,3.2631455]
[1764598472762,1.21,126.26,126.24,0.0531455]
[1764598472957,1.21,126.26,126.24,3.2631455]
[1764598473155,11.39841319,126.27,126.24,3.2631455]
[1764598473865,4.26961319,126.27,126.24,3.2631455]
[1764598474863,0.05236415,126.27,126.24,3.2631455]
[1764598476764,0.05236415,126.27,126.24,10.61179312]
[1764598477371,0.05236415,126.27,126.25,3.27]
[1764598480171,1.25236415,126.27,126.24,7.40179312]
[1764598480365,1.25236415,126.27,126.24,0.0531455]
[1764598480565,1.25236415,126.27,126.24,3.3231455]
[1764598481867,8.38116415,126.27,126.24,3.3231455]
[1764598484176,7.18116415,126.27,126.24,3.3231455]
[1764598484368,8.38116415,126.27,126.24,3.3231455]
[1764598484765,7.18116415,126.27,126.24,3.3231455]
[1764598485973,8.38116415,126.27,126.24,3.3231455]
[1764598487375,8.38116415,126.27,126.25,3.27]
[1764598488571,8.38116415,126.27,126.24,10.67179312]
[1764598488773,8.38116415,126.27,126.24,3.3231455]
[1764598490377,8.3293,126.26,126.24,0.0531455]
[1764598490578,8.3293,126.26,126.24,3.2931455]
[1764598490880,1.2,126.31,126.26,3.24]
[1764598491075,1.2,126.31,126.27,3.24]
[1764598491276,8.3871,126.3,126.27,3.24]
[1764598491674,1.26,126.3,126.27,3.24]
[1764598491981,1.31065589,126.3,126.27,3.30065723]
[1764598492372,7.1278,126.29,126.27,3.30065723]
[1764598492773,0.05065589,126.3,126.27,3.30065723]
[1764598494582,8.43775589,126.3,126.27,3.30065723]
[1764598494979,1.31065589,126.3,126.27,3.30065723]
[1764598495874,0.05065589,126.3,126.27,3.30065723]
[1764598496178,0.05065589,126.3,126.28,3.24]
[1764598500778,0.05065589,126.3,126.27,3.06790627]
[1764598500779,1.31065589,126.3,126.27,0.06065723]
[1764598501585,1.31065589,126.3,126.27,3.30065723]
[1764598503079,0.05065589,126.3,126.27,6.30790627]
[1764598503284,7.1259,126.33,126.3,3.24]
[1764598504081,8.3844,126.35,126.31,3.00724904]
[1764598504386,0.0523919,126.34,126.32,3.30002021]
[1764598504979,1.26,126.33,126.32,0.06002021]
[1764598505980,8.3854,126.33,126.32,0.06002021]
[1764598507189,7.1254,126.33,126.32,3.30002021]
[1764598508289,0.0523919,126.34,126.32,3.30002021]
[1764598509490,1.26,126.33,126.32,0.06002021]
[1764598510887,1.26,126.32,126.27,7.34864762]
[1764598511081,1.26,126.3,126.27,3.24]
[1764598511490,1.26,126.29,126.26,7.34864762]
[1764598511693,1.26,126.29,126.26,10.58864762]
[1764598511891,0.05685287,126.29,126.27,3.24]
[1764598513382,1.26,126.27,126.26,0.05645286]
[1764598515895,1.26,126.27,126.21,3.24]
[1764598515896,1.2,126.25,126.21,3.24]
[1764598516190,1.2,126.27,126.23,3.24]
[1764598516892,0.05569019,126.26,126.24,0.05228458]
[1764598517083,1.25569019,126.26,126.24,0.05228458]
[1764598526002,24.5111576,126.25,126.16,3.12]
[1764598526198,4.7055788,126.21,126.16,3.12]
[1764598526397,4.7055788,126.21,126.13,7.92197486]
[1764598526600,4.7055788,126.19,126.13,7.92197486]
[1764598526800,4.7055788,126.17,126.13,4.80197486]
[1764598527001,4.7593763,126.17,126.15,0.05525482]
[1764598527196,4.7593763,126.17,126.13,4.80197486]
[1764598527402,4.7055788,126.15,126.13,4.80197486]
[1764598527796,0.0537975,126.17,126.13,8.08197486]
[1764598528205,0.0537975,126.17,126.14,0.05906993]
[1764598531004,0.0537975,126.17,126.14,3.33906993]
[1764598535302,0.0537975,126.17,126.14,8.04464873]
[1764598535506,0.0537975,126.17,126.15,3.28]
[1764598536501,4.7055788,126.26,126.16,4.7055788]
[1764598536695,4.7055788,126.26,126.17,3.28]
[1764598537510,0.05825892,126.23,126.2,0.05329979]
[1764598539012,0.05825892,126.23,126.2,3.33329979]
[1764598539705,0.05825892,126.23,126.2,0.05329979]
[1764598542215,4.7055788,126.22,126.2,0.05329979]
[1764598542510,0.05825892,126.23,126.2,0.05329979]
[1764598543911,23.77825892,126.23,126.2,0.05329979]
[1764598545609,0.05825892,126.23,126.2,3.33329979]
[1764598547209,23.81423089,126.29,126.2,3.33329979]
[1764598547410,110.887,126.28,126.2,3.28]
[1764598548314,0.05836224,126.25,126.23,3.33011942]
[1764598551311,24.34204275,126.3,126.23,3.33011942]
[1764598551312,2.71305667,126.3,126.23,3.33011942]
[1764598551719,110.8662,126.3,126.23,3.33011942]
[1764598551913,7.1283,126.28,126.23,3.33011942]
[1764598552118,7.1283,126.28,126.23,3.28]
[1764598552319,0.05736835,126.27,126.25,3.13]
[1764598554621,0.05736835,126.27,126.24,3.18769381]
[1764598556320,7.18616835,126.27,126.24,3.18769381]
[1764598558826,0.05736835,126.27,126.24,3.18769381]
[1764598563125,31.9855788,126.34,126.24,3.18769381]
[1764598563319,27.28,126.34,126.26,3.13]
[1764598563715,4.7055788,126.33,126.26,3.13]
[1764598564127,28.4255788,126.33,126.26,3.13]
[1764598564431,7.1271,126.3,126.28,3.18550801]
[1764598565720,7.1271,126.3,126.28,0.05550801]
[1764598567026,7.1271,126.3,126.28,3.18550801]
[1764598568230,7.1276,126.29,126.28,0.05550801]
[1764598568935,28.4255788,126.3,126.2,3.13]
[1764598569436,7.1289,126.27,126.22,3.13]
[1764598569823,0.05968248,126.26,126.23,0.05144812]
[1764598570031,0.05968248,126.26,126.24,3.13]
[1764598571534,7.1271,126.3,126.24,3.13]
[1764598572430,7.1271,126.3,126.26,0.05682453]
[1764598572745,0.05981914,126.28,126.27,3.13]
[1764598575437,7.18801914,126.28,126.26,0.05682453]
[1764598575638,7.18801914,126.28,126.26,3.18682453]
[1764598578145,7.1287,126.27,126.26,0.05682453]
[1764598579540,7.18801914,126.28,126.26,0.05682453]
[1764598579740,7.18801914,126.28,126.26,3.18682453]
[1764598582958,7.18801914,126.28,126.26,0.05682453]
[1764598584656,7.1287,126.27,126.26,0.05682453]
[1764598584841,10.13930302,126.27,126.26,0.05682453]
[1764598586651,7.1307,126.24,126.21,3.35]
[1764598586852,10.14130302,126.24,126.21,3.35]
[1764598587260,7.1312,126.23,126.17,3.35]
[1764598587654,0.06060806,126.21,126.19,0.05678862]
[1764598587851,3.01060302,126.2,126.19,0.05678862]
[1764598588656,7.18662334,126.21,126.19,0.05678862]
[1764598588854,7.18662334,126.21,126.19,3.45678862]
[1764598589861,7.18662334,126.21,126.19,0.05678862]
[1764598590156,3.01060302,126.2,126.19,0.05678862]
[1764598592957,10.19722636,126.21,126.19,0.05678862]
[1764598594065,10.19722636,126.21,126.19,3.45678862]
[1764598594451,7.18662334,126.21,126.19,3.45678862]
[1764598594656,7.1327,126.2,126.19,0.05678862]
[1764598596669,110.9741,126.18,126.13,4.80197486]
[1764598596855,110.9741,126.18,126.13,8.20197486]
[1764598596856,3.01060302,126.16,126.13,8.20197486]
[1764598597763,3.01060302,126.16,126.14,3.4]
[1764598597764,0.05952818,126.16,126.14,3.4]
[1764598600671,7.1338,126.19,126.15,3.4]
[1764598601073,3.01060302,126.24,126.17,3.4]
[1764598601275,3.01060302,126.24,126.19,3.4]
[1764598601775,0.05503537,126.23,126.21,3.4]
[1764598606872,3.06563839,126.23,126.2,80.05697106]
[1764598607071,3.01060302,126.22,126.2,80.05697106]
[1764598607474,0.05503537,126.23,126.2,83.45697106]
[1764598607672,3.06563839,126.23,126.2,83.45697106]
[1764598608380,7.1319,126.22,126.2,83.45697106]
[1764598609278,7.1319,126.22,126.2,80.05697106]
[1764598610077,3.01060302,126.21,126.2,80.05697106]
[1764598610575,3.01060302,126.21,126.2,53.39927106]
[1764598610782,3.01060302,126.21,126.2,17.60957106]
[1764598611080,7.1319,126.22,126.2,5.68477106]
[1764598611280,3.01060302,126.21,126.2,5.68477106]
[1764598612685,3.01060302,126.21,126.2,8.80477106]
[1764598612878,3.01060302,126.21,126.2,5.68477106]
[1764598613280,10.14270302,126.21,126.2,5.68477106]
[1764598614585,3.01060302,126.21,126.2,5.68477106]
[1764598614780,0.05503537,126.23,126.21,3.12]
[1764598614781,3.06563839,126.23,126.21,3.12]
[1764598615279,0.05503537,126.23,126.21,3.12]
[1764598618588,0.05503537,126.23,126.2,5.68477106]
[1764598618589,3.06563839,126.23,126.2,5.68477106]
[1764598619187,7.1316,126.22,126.2,5.68477106]
[1764598619577,7.1316,126.22,126.2,8.80477106]
[1764598619989,3.06563839,126.23,126.2,8.80477106]
[1764598620496,3.01060302,126.21,126.2,5.68477106]
[1764598621188,3.01060302,126.21,126.2,8.80477106]
[1764598621390,10.14270302,126.21,126.2,8.80477106]
[1764598621583,10.14270302,126.21,126.2,5.68477106]
[1764598622677,10.14270302,126.21,126.2,8.80477106]
[1764598623591,10.14270302,126.21,126.2,5.68477106]
[1764598627097,7.1321,126.21,126.2,8.80477106]
[1764598627396,3.06563839,126.23,126.21,3.12]
[1764598627994,0.05503537,126.23,126.21,3.12]
[1764598628500,7.1316,126.22,126.21,3.12]
[1764598631887,0.05503537,126.23,126.2,5.68477106]
[1764598632091,3.01060302,126.21,126.19,0.05471321]
[1764598632291,2.70292371,126.2,126.19,0.05471321]
[1764598632499,9.83562371,126.2,126.19,0.05471321]
[1764598633089,7.1361,126.14,126.13,7.92197486]
[1764598633799,10.14610302,126.16,126.13,7.92197486]
[1764598633995,3.01060302,126.16,126.13,7.92197486]
[1764598634192,3.06435346,126.16,126.13,7.97274253]
[1764598634595,3.06435346,126.16,126.14,3.12]
[1764598636310,10.19935346,126.16,126.14,3.12]
[1764598636501,0.05375044,126.16,126.14,3.12]
[1764598637189,2.69981928,126.21,126.14,3.12]
[1764598637393,2.69954871,126.23,126.14,3.12]
[1764598637593,7.1328,126.2,126.14,3.12]
[1764598637789,110.9388,126.22,126.14,3.12]
[1764598637992,118.3519219,126.22,126.14,3.12]
[1764598638193,0.06008883,126.19,126.17,0.06052489]
[1764598638400,0.06008883,126.19,126.17,3.18052489]
[1764598642009,7.19378883,126.19,126.17,3.18052489]
[1764598643014,7.19378883,126.19,126.17,0.06052489]
[1764598646514,9.85136634,126.19,126.17,0.06052489]
[1764598647014,7.1338,126.18,126.17,0.06052489]
[1764598648919,7.1338,126.18,126.17,3.13052489]
[1764598650612,0.06008883,126.19,126.17,3.13052489]
[1764598651615,0.06008883,126.19,126.17,0.06052489]
[1764598652313,7.1338,126.18,126.17,0.06052489]
[1764598654013,9.79370146,126.18,126.17,0.06052489]
[1764598654209,7.1338,126.18,126.17,0.06052489]
[1764598657718,2.71662458,126.19,126.17,3.35052489]
[1764598657719,0.06008883,126.19,126.17,3.35052489]
[1764598658411,7.19338883,126.19,126.17,3.35052489]
[1764598658611,0.06008883,126.19,126.17,3.35052489]
[1764598659018,7.1338,126.18,126.17,0.06052489]
[1764598663221,9.83550929,126.18,126.17,0.06052489]
[1764598670224,7.1338,126.18,126.17,0.06052489]
[1764598672225,9.83550929,126.18,126.17,0.06052489]
[1764598673037,7.1361,126.14,126.13,4.80197486]
[1764598675235,7.1361,126.14,126.13,7.486e-05]
[1764598682535,0.04993899,126.15,126.13,7.486e-05]
[1764598686738,7.18553899,126.15,126.13,7.486e-05]
[1764598687040,0.04993899,126.15,126.13,7.486e-05]
[1764598688342,7.1361,126.14,126.13,7.486e-05]
[1764598690941,7.18543899,126.15,126.13,7.486e-05]
[1764598691140,0.04993899,126.15,126.13,7.486e-05]
[1764598691736,7.18563899,126.15,126.13,7.486e-05]
[1764598693041,7.33818015,126.22,126.13,3.20007486]
[1764598693341,2.68494515,126.21,126.13,3.20007486]
[1764598693542,7.1339,126.18,126.13,3.20007486]
[1764598694135,0.06009463,126.17,126.15,3.2]
[1764598695640,9.463e-05,126.17,126.15,3.2]
[1764598695839,7.1331,126.2,126.15,3.2]
[1764598696236,7.1334,126.19,126.15,3.2]
[1764598696841,7.1334,126.19,126.16,3.2559941]
[1764598696842,0.05331662,126.18,126.16,3.2559941]
[1764598697445,7.18721662,126.18,126.16,3.2559941]
[1764598697642,7.18721662,126.18,126.16,0.0559941]
[1764598698447,3.01654622,126.17,126.16,0.0559941]
[1764598698947,10.15094622,126.17,126.16,0.0559941]
[1764598700545,7.1344,126.17,126.16,3.4159941]
[1764598701939,7.1344,126.17,126.16,0.0559941]
[1764598703258,0.05331662,126.18,126.16,3.4159941]
[1764598703449,0.05331662,126.18,126.16,0.0559941]
[1764598704155,10.20396284,126.18,126.16,0.0559941]
[1764598704547,7.136,126.15,126.13,7.486e-05]
[1764598704750,10.15254622,126.15,126.13,7.486e-05]
[1764598705550,10.20795533,126.15,126.13,0.05777942]
[1764598707851,2.79873097,126.14,126.13,0.05777942]
[1764598708049,9.93483097,126.14,126.13,0.05777942]
[1764598710657,7.1361,126.14,126.13,0.05777942]
[1764598712260,9.80772057,126.14,126.13,0.05777942]
[1764598714261,7.1361,126.14,126.13,0.05777942]
[1764598715261,111.0332,126.11,126.07,10.60267527]
[1764598715567,111.0332,126.11,126.07,3.2]
[1764598715568,3.01654622,126.1,126.07,3.2]
[1764598716361,3.07278036,126.1,126.07,3.25647999]
[1764598716751,7.1389,126.09,126.07,3.25647999]
[1764598720066,7.1395,126.08,126.07,3.25647999]
[1764598721461,7.1395,126.08,126.07,0.05647999]
[1764598722260,7.1395,126.08,126.07,3.25647999]
[1764598723454,7.1395,126.08,126.07,0.05647999]
[1764598724162,7.1391,126.09,126.07,3.25647999]
[1764598724867,7.19463414,126.1,126.07,3.25647999]
[1764598725068,0.05623414,126.1,126.07,6.27302621]
[1764598725271,0.05623414,126.1,126.08,3.2]
[1764598726667,0.05623414,126.1,126.09,3.2]
[1764598728070,7.1375,126.12,126.09,3.2]
[1764598728269,110.9915,126.16,126.1,3.2]
[1764598728467,114.01784622,126.15,126.1,3.2]
[1764598728770,3.01654622,126.13,126.1,3.2]
[1764598729270,0.0508363,126.13,126.1,3.25908842]
[1764598730666,7.1876363,126.13,126.1,3.25908842]
[1764598732473,7.1374,126.12,126.1,3.25908842]
[1764598735978,7.1378,126.11,126.1,3.25908842]
[1764598737178,7.1376,126.12,126.1,3.25908842]
[1764598740073,3.06738252,126.13,126.1,3.25908842]
[1764598740268,114.05164622,126.11,126.06,7.40267527]
[1764598740587,3.01654622,126.09,126.06,3.23]
[1764598741073,3.01654622,126.09,126.02,12.82361698]
[1764598741074,10.15674622,126.07,126.03,3.23]
[1764598741273,10.15674622,126.07,126.04,0.05694151]
[1764598741480,0.0552468,126.06,126.04,3.28694151]
[1764598741675,0.0552468,126.06,126.04,0.05694151]
[1764598741676,7.1960468,126.06,126.04,0.05694151]
[1764598741868,114.10434622,126.05,126.0,7.40267527]
[1764598742073,3.01654622,126.01,125.97,7.40267527]
[1764598742274,3.01654622,126.01,125.97,3.23]
[1764598742871,3.01654622,126.01,125.98,3.23]
[1764598743075,0.05332336,126.0,125.98,3.28235102]
[1764598746776,111.0817,126.06,125.99,3.23]
[1764598746983,3.01654622,126.04,125.97,6.24654622]
[1764598747172,3.01654622,126.04,125.98,3.23]
[1764598747372,111.0946,126.05,125.98,3.23]
[1764598747567,3.01654622,126.04,125.98,3.23]
[1764598747768,0.05336334,126.02,126.0,0.05003596]
[1764598748282,0.05336334,126.02,126.0,3.28003596]
[1764598751184,0.05336334,126.02,126.01,6.24654622]
[1764598751880,0.05336334,126.02,126.01,3.23]
[1764598752588,0.05336334,126.02,126.0,6.29658218]
[1764598753490,0.05336334,126.02,126.01,3.23]
[1764598755493,3.01654622,126.08,126.02,3.23]
[1764598755695,10.15604622,126.08,126.02,3.23]
[1764598755895,3.01654622,126.08,126.02,3.23]
[1764598756098,7.1401,126.07,126.02,3.23]
[1764598756584,0.05849399,126.06,126.03,6.30588573]
[1764598756894,0.05849399,126.06,126.04,3.23]
[1764598757995,0.05849399,126.06,126.05,6.24654622]
[1764598758596,0.05849399,126.06,126.05,3.23]
[1764598758893,0.05849399,126.06,126.04,3.23]
[1764598759585,0.05849399,126.06,126.03,3.28933951]
[1764598759789,3.01654622,126.05,126.03,0.05933951]
[1764598760398,0.05849399,126.06,126.03,0.05933951]
[1764598761391,7.1415,126.05,126.03,0.05933951]